fUSD/lending_fUSD_20240819
["ID","MTS","AMOUNT","RATE_DAILY","PERIOD"]
[335321830,1724110250441,-500.0,0.00010983,2]
[335321831,1724110250451,-500.0,0.00010983,2]
[335321832,1724110250460,-500.0,0.00010983,2]
[335321833,1724110250468,-500.0,0.00010983,2]
[335321834,1724110250478,-500.0,0.00010983,2]
[335321835,1724110250490,-500.0,0.00010983,2]
[335321836,1724110250501,-500.0,0.00010983,2]
[335321837,1724110250512,-500.0,0.00010983,2]
[335321838,1724110250521,-500.0,0.00010983,2]
[335321839,1724110250531,-500.0,0.00010983,2]
[335321840,1724110250540,-500.0,0.00010983,2]
[335321841,1724110250549,-500.0,0.00010983,2]
[335321842,1724110250558,-500.0,0.00010983,2]
[335321843,1724110250569,-500.0,0.00010983,2]
[335321844,1724110250578,-500.0,0.00010983,2]
[335321845,1724110250587,-500.0,0.00010983,2]
[335321846,1724110250597,-500.0,0.00010983,2]
[335321847,1724110250606,-500.0,0.00010983,2]
[335321848,1724110250615,-500.0,0.00010983,2]
[335321849,1724110250624,-500.0,0.00010983,2]
[335321850,1724110250633,-895.4,0.00010983,2]
[335321851,1724110250642,-895.4,0.00010983,2]
[335321852,1724110250651,-895.4,0.00010983,2]
[335321853,1724110250660,-500.0,0.00010983,2]
[335321854,1724110250669,-500.0,0.00010983,2]
[335321855,1724110250678,-500.0,0.00010983,2]
[335321856,1724110250687,-500.0,0.00010983,2]
[335321857,1724110250696,-1148.98,0.00010983,2]
[335321858,1724110250706,-1148.98,0.00010983,2]
[335321859,1724110250715,-1148.98,0.00010983,2]
[335321860,1724110250724,-500.0,0.00010983,2]
[335321861,1724110250734,-500.0,0.00010983,2]
[335321862,1724110250744,-500.0,0.00010983,2]
[335321863,1724110250753,-500.0,0.00010983,2]
[335321864,1724110250763,-500.0,0.00010983,2]
[335321865,1724110250772,-500.0,0.00010983,2]
[335321866,1724110250782,-2255.91,0.00010983,2]
[335321867,1724110250792,-2255.91,0.00010983,2]
[335321868,1724110250801,-2255.91,0.00010983,2]
[335321869,1724110250810,-1211.84,0.00010983,2]
[335321870,1724110250820,-1211.84,0.00010983,2]
[335321871,1724110250829,-500.0,0.00010983,2]
[335321872,1724110250839,-500.0,0.00010983,2]
[335321873,1724110250848,-500.0,0.00010983,2]
[335321874,1724110250858,-512.65157425,0.00010983,2]
[335321875,1724110250867,-500.0,0.00010983,2]
[335321876,1724110250877,-500.0,0.00010983,2]
[335321877,1724110250886,-911.34,0.00010983,2]
[335321878,1724110250896,-500.0,0.00010983,2]
[335321879,1724110250905,-911.34,0.00010983,2]
[335321880,1724110250914,-500.0,0.00010983,2]
[335321881,1724110250924,-500.0,0.00010983,2]
[335321882,1724110250933,-500.0,0.00010983,2]
[335321883,1724110250942,-500.0,0.00010983,2]
[335321884,1724110250951,-500.61,0.00010983,2]
[335321885,1724110250961,-2620.2,0.00010983,2]
[335321886,1724110250970,-500.61,0.00010983,2]
[335321887,1724110250979,-2620.2,0.00010983,2]
[335321888,1724110250989,-500.61,0.00010983,2]
[335321889,1724110250998,-376.71691382,0.00010983,2]
[335321890,1724110251008,-1150.42,0.00010983,2]
[335321891,1724110251019,-1150.42,0.00010983,2]
[335321892,1724110251032,-1150.42,0.00010983,2]
[335321893,1724110251050,-500.0,0.00010983,2]
[335321894,1724110251065,-500.0,0.00010983,2]
[335321895,1724110251079,-500.0,0.00010983,2]
[335321896,1724110251095,-500.0,0.00010983,2]
[335321897,1724110251110,-500.0,0.00010983,2]
[335321898,1724110251125,-500.0,0.00010983,2]
[335321899,1724110251141,-500.0,0.00010983,2]
[335321900,1724110251155,-604.26,0.00010983,2]
[335321901,1724110251170,-604.26,0.00010983,2]
[335321902,1724110251185,-500.0,0.00010983,2]
[335321903,1724110251201,-500.0,0.00010983,2]
[335321904,1724110251213,-500.0,0.00010983,2]
[335321905,1724110251226,-1460.11,0.00010983,2]
[335321906,1724110251240,-1460.11,0.00010983,2]
[335321907,1724110251254,-373.0403943,0.00010983,2]
[335321908,1724110251270,-500.0,0.00010983,2]
[335321909,1724110251286,-500.0,0.00010983,2]
[335321910,1724110251300,-726.73,0.00010983,2]
[335321911,1724110251311,-726.73,0.00010983,2]
[335321912,1724110251323,-500.0,0.00010983,2]
[335321913,1724110251339,-500.0,0.00010983,2]
[335321914,1724110251351,-500.0,0.00010983,2]
[335321915,1724110251366,-500.0,0.00010983,2]
[335321916,1724110251380,-500.0,0.00010983,2]
[335321917,1724110251393,-500.0,0.00010983,2]
[335321918,1724110251405,-500.0,0.00010983,2]
[335321919,1724110251418,-1502.98,0.00010983,2]
[335321920,1724110251431,-1502.98,0.00010983,2]
[335321921,1724110251444,-500.0,0.00010983,2]
[335321922,1724110251457,-500.0,0.00010983,2]
[335321923,1724110251469,-500.0,0.00010983,2]
[335321924,1724110251481,-500.0,0.00010983,2]
[335321925,1724110251498,-641.45,0.00010983,2]
[335321926,1724110251511,-641.45,0.00010983,2]
[335321927,1724110251524,-500.0,0.00010983,2]
[335321928,1724110251537,-500.0,0.00010983,2]
[335321929,1724110251550,-500.0,0.00010983,2]
[335321930,1724110251562,-476.8,0.00010983,2]
[335321931,1724110251577,-500.0,0.00010983,2]
[335321932,1724110251589,-500.0,0.00010983,2]
[335321933,1724110251602,-500.0,0.00010983,2]
[335321934,1724110251614,-500.0,0.00010983,2]
[335321935,1724110251627,-500.0,0.00010983,2]
[335321936,1724110251639,-151.0,0.00010983,2]
[335321937,1724110251652,-500.0,0.00010983,2]
[335321938,1724110251667,-500.0,0.00010983,2]
[335321939,1724110251679,-500.0,0.00010983,2]
[335321940,1724110251692,-500.0,0.00010983,2]
[335321941,1724110251705,-189.549641,0.00010983,2]
[335321942,1724110251717,-615.94,0.00010983,2]
[335321943,1724110251731,-615.94,0.00010983,2]
[335321944,1724110251744,-3117.36,0.00010983,2]
[335321945,1724110251756,-9844.79,0.00010983,2]
[335321946,1724110251769,-189.549641,0.00010983,2]
[335321947,1724110251781,-7500.08,0.00010983,2]
[335321948,1724110251794,-7220.89,0.00010983,2]
[335321949,1724110251807,-7220.89,0.00010983,2]
[335321950,1724110251819,-1322.629795,0.00010983,2]
[335321951,1724110251832,-500.779317,0.00010983,2]
[335321952,1724110251844,-1322.629795,0.00010983,2]
[335321953,1724110251858,-4081.43,0.00010983,2]
[335321954,1724110251870,-13688.56,0.00010983,2]
[335321955,1724110251882,-13688.56,0.00010983,2]
[335321956,1724110251895,-8938.12,0.00010983,2]
[335321957,1724110251907,-8938.12,0.00010983,2]
[335321958,1724110251920,-500.0,0.00010983,2]
[335321959,1724110251932,-500.0,0.00010983,2]
[335321960,1724110251945,-500.0,0.00010983,2]
[335321961,1724110251958,-500.0,0.00010983,2]
[335321962,1724110251971,-500.0,0.00010983,2]
[335321963,1724110251988,-1900.55,0.00010983,2]
[335321964,1724110252001,-500.0,0.00010983,2]
[335321965,1724110252014,-500.0,0.00010983,2]
[335321966,1724110252027,-500.0,0.00010983,2]
[335321967,1724110252040,-500.0,0.00010983,2]
[335321968,1724110252053,-790.28,0.00010983,2]
[335321969,1724110252066,-3850.37,0.00010983,2]
[335321970,1724110252079,-3850.37,0.00010983,2]
[335321971,1724110252091,-500.0,0.00010983,2]
[335321972,1724110252105,-5568.86,0.00010983,2]
[335321973,1724110252118,-5568.86,0.00010983,2]
[335321974,1724110252131,-151.0,0.00010983,2]
[335321975,1724110252144,-500.0,0.00010983,2]
[335321976,1724110252158,-3633.61,0.00010983,2]
[335321977,1724110252172,-151.0,0.00010983,2]
[335321978,1724110252186,-3148.7,0.00010983,2]
[335321979,1724110252195,-500.0,0.00010983,2]
[335321980,1724110252206,-14047.63,0.00010983,2]
[335321981,1724110252215,-14047.63,0.00010983,2]
[335321982,1724110252225,-7465.43,0.00010983,2]
[335321983,1724110252234,-1976.46,0.00010983,2]
[335321984,1724110252244,-1976.46,0.00010983,2]
[335321985,1724110252254,-500.0,0.00010983,2]
[335321986,1724110252266,-4315.56,0.00010983,2]
[335321987,1724110252276,-4315.56,0.00010983,2]
[335321988,1724110252286,-151.0,0.00010983,2]
[335321989,1724110252295,-536.69,0.00010983,2]
[335321990,1724110252511,-151.0,0.00010983,2]
[335321991,1724110252537,-1520.47,0.00010983,2]
[335321992,1724110252550,-1520.47,0.00010983,2]
[335321993,1724110252561,-6672.55,0.00010983,2]
[335321994,1724110252571,-1090.25,0.00010983,2]
[335321995,1724110252581,-1090.25,0.00010983,2]
[335321996,1724110252591,-1485.23,0.00010983,2]
[335321997,1724110252600,-4622.19,0.00010983,2]
[335321998,1724110252610,-7845.81,0.00010983,2]
[335321999,1724110252619,-7845.81,0.00010983,2]
[335322000,1724110252629,-151.0,0.00010983,2]
[335322001,1724110252638,-2586.21,0.00010983,2]
[335322002,1724110252647,-1962.57,0.00010983,2]
[335322003,1724110252657,-1962.57,0.00010983,2]
[335322004,1724110252666,-151.436564,0.00010983,2]
[335322005,1724110252675,-9611.02,0.00010983,2]
[335322006,1724110252684,-624.72,0.00010983,2]
[335322007,1724110252694,-6471.45,0.00010983,2]
[335322008,1724110252703,-500.0,0.00010983,2]
[335322009,1724110252712,-500.0,0.00010983,2]
[335322010,1724110252722,-18067.4,0.00010983,2]
[335322011,1724110252731,-151.0,0.00010983,2]
[335322012,1724110252740,-3027.77,0.00010983,2]
[335322013,1724110252749,-151.0,0.00010983,2]
[335322014,1724110252761,-9025.99,0.00010983,2]
[335322015,1724110252770,-1761.78,0.00010983,2]
[335322016,1724110252780,-2430.18,0.00010983,2]
[335322017,1724110252789,-2430.18,0.00010983,2]
[335322018,1724110252799,-204.317477,0.00010983,2]
[335322019,1724110252808,-5516.48,0.00010983,2]
[335322020,1724110252818,-12238.22,0.00010983,2]
[335322021,1724110252827,-12238.22,0.00010983,2]
[335322022,1724110252835,-2459.18,0.00010983,2]
[335322023,1724110252845,-204.317477,0.00010983,2]
[335322024,1724110252855,-4848.94,0.00010983,2]
[335322025,1724110252864,-1107.72,0.00010983,2]
[335322026,1724110252874,-1682.07,0.00010983,2]
[335322027,1724110252883,-1682.07,0.00010983,2]
[335322028,1724110252893,-3977.57,0.00010983,2]
[335322029,1724110252902,-186.447034,0.00010983,2]
[335322030,1724110252911,-186.447034,0.00010983,2]
[335322031,1724110252920,-949.17,0.00010983,2]
[335322032,1724110252930,-1814.78,0.00010983,2]
[335322033,1724110252939,-1073.69,0.00010983,2]
[335322034,1724110252948,-1073.69,0.00010983,2]
[335322035,1724110252958,-10789.05,0.00010983,2]
[335322036,1724110252968,-10789.05,0.00010983,2]
[335322037,1724110252977,-1814.93,0.00010983,2]
[335322038,1724110252986,-1192.96,0.00010983,2]
[335322039,1724110252995,-44255.83,0.00010983,2]
[335322040,1724110253004,-500.0,0.00010983,2]
[335322041,1724110253025,-500.0,0.00010983,2]
[335322042,1724110253035,-3415.98,0.00010983,2]
[335322043,1724110253045,-151.0,0.00010983,2]
[335322044,1724110253055,-6128.85,0.00010983,2]
[335322045,1724110253065,-60823.98,0.00010983,2]
[335322046,1724110253075,-500.0,0.00010983,2]
[335322047,1724110253085,-500.0,0.00010983,2]
[335322048,1724110253095,-3186.86,0.00010983,2]
[335322049,1724110253105,-500.0,0.00010983,2]
[335322050,1724110253114,-500.0,0.00010983,2]
[335322051,1724110253123,-10701.78,0.00010983,2]
[335322052,1724110253135,-3138.66,0.00010983,2]
[335322053,1724110253145,-151.0,0.00010983,2]
[335322054,1724110253154,-500.0,0.00010983,2]
[335322055,1724110253164,-500.0,0.00010983,2]
[335322056,1724110253173,-151.0,0.00010983,2]
[335322057,1724110253183,-226.693337,0.00010983,2]
[335322058,1724110253193,-2383.08,0.00010983,2]
[335322059,1724110253203,-641.0,0.00010983,2]
[335322060,1724110253212,-500.0,0.00010983,2]
[335322061,1724110253221,-500.0,0.00010983,2]
[335322062,1724110253231,-3889.08,0.00010983,2]
[335322063,1724110253240,-19641.68,0.00010983,2]
[335322064,1724110253250,-500.0,0.00010983,2]
[335322065,1724110253260,-500.0,0.00010983,2]
[335322066,1724110253269,-728.95,0.00010983,2]
[335322067,1724110253279,-728.95,0.00010983,2]
[335322068,1724110253289,-3874.28,0.00010983,2]
[335322069,1724110253299,-5835.55,0.00010983,2]
[335322070,1724110253309,-2598.7,0.00010983,2]
[335322071,1724110253318,-400.79,0.00010983,2]
[335322072,1724110253327,-500.0,0.00010983,2]
[335322073,1724110253337,-500.0,0.00010983,2]
[335322074,1724110253346,-507.96,0.00010983,2]
[335322075,1724110253356,-5109.82,0.00010983,2]
[335322076,1724110253365,-11991.87,0.00010983,2]
[335322077,1724110253374,-682.4,0.00010983,2]
[335322078,1724110253384,-983.68,0.00010983,2]
[335322079,1724110253393,-4694.41,0.00010983,2]
[335322080,1724110253403,-537.89340631,0.00010984,2]
[335322081,1724110253412,-500.0,0.00010984,2]
[335322082,1724110253422,-500.0,0.00010984,2]
[335322083,1724110253431,-262.18879955,0.00010984,2]
[335322084,1724110253440,-500.0,0.00010984,2]
[335322085,1724110253449,-500.0,0.00010984,2]
[335322086,1724110253458,-500.0,0.00010984,2]
[335322087,1724110253467,-500.0,0.00010984,2]
[335322088,1724110253477,-500.0,0.00010984,2]
[335322089,1724110253488,-500.0,0.00010984,2]
[335322090,1724110253499,-500.0,0.00010984,2]
[335322091,1724110253511,-500.0,0.00010984,2]
[335322092,1724110253520,-500.0,0.00010984,2]
[335322093,1724110253531,-500.0,0.00010984,2]
[335322094,1724110253540,-500.0,0.00010984,2]
[335322095,1724110253550,-500.0,0.00010984,2]
[335322096,1724110253559,-500.0,0.00010984,2]
[335322097,1724110253572,-500.0,0.00010984,2]
[335322098,1724110253582,-500.0,0.00010984,2]
[335322099,1724110253591,-500.0,0.00010984,2]
[335322100,1724110253600,-500.0,0.00010984,2]
[335322101,1724110253609,-500.0,0.00010984,2]
[335322102,1724110253618,-500.0,0.00010984,2]
[335322103,1724110253627,-500.0,0.00010984,2]
[335322104,1724110253636,-500.0,0.00010984,2]
[335322105,1724110253646,-500.0,0.00010984,2]
[335322106,1724110253655,-500.0,0.00010984,2]
[335322107,1724110253664,-500.0,0.00010984,2]
[335322108,1724110253674,-500.0,0.00010984,2]
[335322109,1724110253683,-500.0,0.00010984,2]
[335322110,1724110253692,-500.0,0.00010984,2]
[335322111,1724110253702,-510.48479847,0.00010984,2]
[335322112,1724110253711,-500.0,0.00010984,2]
[335322113,1724110253720,-560.8238556,0.00010984,2]
[335322114,1724110253730,-500.0,0.00010984,2]
[335322115,1724110253738,-500.0,0.00010984,2]
[335322116,1724110253748,-546.5076214,0.00010984,2]
[335322117,1724110253758,-1291.23,0.00010984,2]
[335322118,1724110253768,-1291.23,0.00010984,2]
[335322119,1724110253777,-1291.23,0.00010984,2]
[335322120,1724110253786,-1291.23,0.00010984,2]
[335322121,1724110253795,-500.0,0.00010984,2]
[335322122,1724110253804,-160.39711921,0.00010984,2]
[335322123,1724110253814,-500.0,0.00010984,2]
[335322124,1724110253823,-637.07133926,0.00010984,2]
[335322125,1724110253832,-500.0,0.00010984,2]
[335322126,1724110253842,-500.0,0.00010984,2]
[335322127,1724110253851,-500.0,0.00010984,2]
[335322128,1724110253861,-500.0,0.00010984,2]
[335322129,1724110253870,-500.0,0.00010984,2]
[335322130,1724110253879,-331.70153269,0.00010984,2]
[335322131,1724110253888,-500.0,0.00010984,2]
[335322132,1724110253898,-151.0,0.00010984,2]
[335322133,1724110253907,-601.366652,0.00010984,2]
[335322134,1724110253916,-197.871476,0.00010984,2]
[335322135,1724110253925,-151.0,0.00010984,2]
[335322136,1724110253934,-151.0,0.00010984,2]
[335322137,1724110253943,-151.0,0.00010984,2]
[335322138,1724110253952,-500.0,0.00010984,2]
[335322139,1724110253961,-500.0,0.00010984,2]
[335322140,1724110253971,-189.549641,0.00010984,2]
[335322141,1724110253980,-9844.79,0.00010984,2]
[335322142,1724110253989,-189.549641,0.00010984,2]
[335322143,1724110253998,-7500.08,0.00010984,2]
[335322144,1724110254008,-1322.629795,0.00010984,2]
[335322145,1724110254017,-500.779317,0.00010984,2]
[335322146,1724110254027,-1322.629795,0.00010984,2]
[335322147,1724110254036,-4081.43,0.00010984,2]
[335322148,1724110254046,-500.0,0.00010984,2]
[335322149,1724110254055,-500.0,0.00010984,2]
[335322150,1724110254065,-1900.55,0.00010984,2]
[335322151,1724110254074,-500.0,0.00010984,2]
[335322152,1724110254084,-500.0,0.00010984,2]
[335322153,1724110254094,-500.0,0.00010984,2]
[335322154,1724110254103,-790.28,0.00010984,2]
[335322155,1724110254113,-151.0,0.00010984,2]
[335322156,1724110254124,-3633.61,0.00010984,2]
[335322157,1724110254133,-151.0,0.00010984,2]
[335322158,1724110254143,-3148.7,0.00010984,2]
[335322159,1724110254154,-7465.43,0.00010984,2]
[335322160,1724110254163,-500.0,0.00010984,2]
[335322161,1724110254174,-151.0,0.00010984,2]
[335322162,1724110254184,-151.0,0.00010984,2]
[335322163,1724110254194,-6672.55,0.00010984,2]
[335322164,1724110254203,-1485.23,0.00010984,2]
[335322165,1724110254213,-4622.19,0.00010984,2]
[335322166,1724110254222,-151.0,0.00010984,2]
[335322167,1724110254232,-2586.21,0.00010984,2]
[335322168,1724110254241,-9611.02,0.00010984,2]
[335322169,1724110254251,-624.72,0.00010984,2]
[335322170,1724110254263,-6471.45,0.00010984,2]
[335322171,1724110254272,-18067.4,0.00010984,2]
[335322172,1724110254291,-151.0,0.00010984,2]
[335322173,1724110254301,-3027.77,0.00010984,2]
[335322174,1724110254311,-9025.99,0.00010984,2]
[335322175,1724110254321,-1761.78,0.00010984,2]
[335322176,1724110254330,-204.317477,0.00010984,2]
[335322177,1724110254339,-5516.48,0.00010984,2]
[335322178,1724110254348,-2459.18,0.00010984,2]
[335322179,1724110254357,-204.317477,0.00010984,2]
[335322180,1724110254366,-4848.94,0.00010984,2]
[335322181,1724110254375,-1107.72,0.00010984,2]
[335322182,1724110254385,-3977.57,0.00010984,2]
[335322183,1724110254394,-949.17,0.00010984,2]
[335322184,1724110254403,-1814.78,0.00010984,2]
[335322185,1724110254412,-1814.93,0.00010984,2]
[335322186,1724110254422,-1192.96,0.00010984,2]
[335322187,1724110254431,-44255.83,0.00010984,2]
[335322188,1724110254441,-3415.98,0.00010984,2]
[335322189,1724110254451,-6128.85,0.00010984,2]
[335322190,1724110254460,-60823.98,0.00010984,2]
[335322191,1724110254469,-3186.86,0.00010984,2]
[335322192,1724110254479,-10701.78,0.00010984,2]
[335322193,1724110254492,-3138.66,0.00010984,2]
[335322194,1724110254501,-151.0,0.00010984,2]
[335322195,1724110254511,-151.0,0.00010984,2]
[335322196,1724110254521,-2383.08,0.00010984,2]
[335322197,1724110254532,-3889.08,0.00010984,2]
[335322198,1724110254542,-19641.68,0.00010984,2]
[335322199,1724110254551,-3874.28,0.00010984,2]
[335322200,1724110254561,-5835.55,0.00010984,2]
[335322201,1724110254572,-2598.7,0.00010984,2]
[335322202,1724110254582,-500.0,0.00010984,2]
[335322203,1724110254591,-5109.82,0.00010984,2]
[335322204,1724110254600,-11991.87,0.00010984,2]
[335322205,1724110254609,-682.4,0.00010984,2]
[335322206,1724110254619,-983.68,0.00010984,2]
[335322207,1724110254628,-4694.41,0.00010984,2]
[335322208,1724110254637,-522.87024397,0.00010985,2]
[335322209,1724110254646,-500.0,0.00010985,2]
[335322210,1724110254656,-500.0,0.00010985,2]
[335322211,1724110254665,-500.0,0.00010985,2]
[335322212,1724110254673,-500.0,0.00010985,2]
[335322213,1724110254682,-500.0,0.00010985,2]
[335322214,1724110254692,-500.0,0.00010985,2]
[335322215,1724110254701,-500.0,0.00010985,2]
[335322216,1724110254710,-500.0,0.00010985,2]
[335322217,1724110254718,-500.0,0.00010985,2]
[335322218,1724110254727,-513.36635459,0.00010985,2]
[335322219,1724110254736,-500.0,0.00010985,2]
[335322220,1724110254745,-500.0,0.00010985,2]
[335322221,1724110254755,-500.0,0.00010985,2]
[335322222,1724110254765,-1211.84,0.00010985,2]
[335322223,1724110254774,-500.0,0.00010985,2]
[335322224,1724110254784,-151.0,0.00010985,2]
[335322225,1724110254792,-500.0,0.00010985,2]
[335322226,1724110254801,-911.34,0.00010985,2]
[335322227,1724110254813,-151.0,0.00010985,2]
[335322228,1724110254822,-288.356984,0.00010985,2]
[335322229,1724110254831,-500.0,0.00010985,2]
[335322230,1724110254840,-2620.2,0.00010985,2]
[335322231,1724110254849,-151.0,0.00010985,2]
[335322232,1724110254857,-151.0,0.00010985,2]
[335322233,1724110254866,-151.0,0.00010985,2]
[335322234,1724110254875,-500.0,0.00010985,2]
[335322235,1724110254884,-500.0,0.00010985,2]
[335322236,1724110254893,-604.26,0.00010985,2]
[335322237,1724110254902,-1460.11,0.00010985,2]
[335322238,1724110254911,-500.0,0.00010985,2]
[335322239,1724110254920,-726.73,0.00010985,2]
[335322240,1724110254929,-260.02142986,0.00010985,2]
[335322241,1724110254938,-500.0,0.00010985,2]
[335322242,1724110254947,-1502.98,0.00010985,2]
[335322243,1724110254956,-500.0,0.00010985,2]
[335322244,1724110254965,-198.8879992,0.00010985,2]
[335322245,1724110254975,-641.45,0.00010985,2]
[335322246,1724110254984,-500.0,0.00010985,2]
[335322247,1724110254994,-301.70222353,0.00010985,2]
[335322248,1724110255003,-408.45,0.00010985,2]
[335322249,1724110255014,-500.0,0.00010985,2]
[335322250,1724110255023,-615.94,0.00010985,2]
[335322251,1724110255032,-7220.89,0.00010985,2]
[335322252,1724110255042,-13688.56,0.00010985,2]
[335322253,1724110255051,-8938.12,0.00010985,2]
[335322254,1724110255060,-500.0,0.00010985,2]
[335322255,1724110255069,-500.0,0.00010985,2]
[335322256,1724110255079,-500.0,0.00010985,2]
[335322257,1724110255088,-585.75,0.00010985,2]
[335322258,1724110255097,-3850.37,0.00010985,2]
[335322259,1724110255107,-5568.86,0.00010985,2]
[335322260,1724110255116,-151.0,0.00010985,2]
[335322261,1724110255125,-14047.63,0.00010985,2]
[335322262,1724110255135,-1976.46,0.00010985,2]
[335322263,1724110255145,-4315.56,0.00010985,2]
[335322264,1724110255154,-151.0,0.00010985,2]
[335322265,1724110255164,-436.71891,0.00010985,2]
[335322266,1724110255173,-1520.47,0.00010985,2]
[335322267,1724110255183,-1090.25,0.00010985,2]
[335322268,1724110255192,-7845.81,0.00010985,2]
[335322269,1724110255202,-179.261468,0.00010985,2]
[335322270,1724110255211,-1962.57,0.00010985,2]
[335322271,1724110255220,-500.0,0.00010985,2]
[335322272,1724110255230,-151.0,0.00010985,2]
[335322273,1724110255240,-151.0,0.00010985,2]
[335322274,1724110255250,-2430.18,0.00010985,2]
[335322275,1724110255261,-204.317477,0.00010985,2]
[335322276,1724110255270,-12238.22,0.00010985,2]
[335322277,1724110255280,-204.317477,0.00010985,2]
[335322278,1724110255289,-1682.07,0.00010985,2]
[335322279,1724110255299,-186.447034,0.00010985,2]
[335322280,1724110255309,-186.447034,0.00010985,2]
[335322281,1724110255318,-1073.69,0.00010985,2]
[335322282,1724110255327,-10789.05,0.00010985,2]
[335322283,1724110255336,-500.0,0.00010985,2]
[335322284,1724110255346,-151.0,0.00010985,2]
[335322285,1724110255355,-500.0,0.00010985,2]
[335322286,1724110255364,-500.0,0.00010985,2]
[335322287,1724110255375,-500.0,0.00010985,2]
[335322288,1724110255385,-500.0,0.00010985,2]
[335322289,1724110255395,-500.0,0.00010985,2]
[335322290,1724110255405,-728.95,0.00010985,2]
[335322291,1724110255415,-157.056633,0.00010986,2]
[335322292,1724110255425,-1291.23,0.00010986,2]
[335322293,1724110255435,-358.35204597,0.00010987,2]
[335322294,1724110255445,-358.35204597,0.00010988,2]
[335322295,1724110255455,-624.72,0.00010989,2]
[335322296,1724110255466,-1761.78,0.00010989,2]
[335322297,1724110255477,-5516.48,0.00010989,2]
[335322298,1724110255491,-1107.72,0.00010989,2]
[335322299,1724110255502,-949.17,0.00010989,2]
[335322300,1724110255518,-1814.93,0.00010989,2]
[335322301,1724110255529,-1192.96,0.00010989,2]
[335322302,1724110255540,-6128.85,0.00010989,2]
[335322303,1724110255551,-60823.98,0.00010989,2]
[335322304,1724110255700,-3138.66,0.00010989,2]
[335322305,1724110255711,-2383.08,0.00010989,2]
[335322306,1724110255720,-19641.68,0.00010989,2]
[335322307,1724110255730,-5835.55,0.00010989,2]
[335322308,1724110255740,-2598.7,0.00010989,2]
[335322309,1724110255750,-500.0,0.00010989,2]
[335322310,1724110255762,-500.0,0.00010989,2]
[335322311,1724110255772,-11991.87,0.00010989,2]
[335322312,1724110255782,-682.4,0.00010989,2]
[335322313,1724110255791,-983.68,0.00010989,2]
[335322314,1724110255800,-983.68,0.00010989,2]
[335322315,1724110255810,-18905.36050457,0.00010989,2]
[335322316,1724110255819,-4694.41,0.00010989,2]
[335322317,1724110255828,-716.70409194,0.00010989,2]
[335322318,1724110255837,-500.0,0.0001099,2]
[335322319,1724110255846,-500.0,0.0001099,2]
[335322320,1724110255856,-500.0,0.0001099,2]
[335322321,1724110255865,-463.30424017,0.0001099,2]
[335322322,1724110255876,-500.0,0.0001099,2]
[335322323,1724110255885,-500.0,0.0001099,2]
[335322324,1724110255894,-500.0,0.0001099,2]
[335322325,1724110255904,-465.70659266,0.0001099,2]
[335322326,1724110255913,-500.0,0.0001099,2]
[335322327,1724110255923,-500.0,0.0001099,2]
[335322328,1724110255933,-500.0,0.0001099,2]
[335322329,1724110255942,-500.0,0.0001099,2]